bitfinex/quotes_BTCUSD_20250204
["timestamp","ask_amount","ask_price","bid_price","bid_amount"]
[1738708917463,0.25684406,97113.0,97107.0,0.00507055]
[1738708917663,0.25684406,97113.0,97106.0,0.154469]
[1738708917872,0.25684406,97113.0,97104.0,0.15]
[1738708917873,0.10238506,97113.0,97104.0,0.15]
[1738708918072,0.15446,97112.0,97106.0,0.001]
[1738708918645,0.15446,97112.0,97107.0,0.00507055]
[1738708918847,0.10238506,97111.0,97107.0,0.00507055]
[1738708918978,0.10238506,97111.0,97106.0,0.155468]
[1738708919186,0.10238506,97111.0,97107.0,0.00507055]
[1738708921093,0.25684806,97111.0,97104.0,0.15]
[1738708921205,0.25684806,97111.0,97108.0,0.00507055]
[1738708921407,0.25684806,97111.0,97104.0,0.304473]
[1738708921617,0.10238506,97111.0,97104.0,0.304473]
[1738708921818,0.10238506,97111.0,97105.0,0.00507055]
[1738708922071,0.25684706,97111.0,97105.0,0.00507055]
[1738708922500,0.10238506,97111.0,97105.0,0.00507055]
[1738708922657,0.10238506,97111.0,97105.0,0.15954155]
[1738708923081,0.25684806,97111.0,97105.0,0.00507055]
[1738708923281,0.25684806,97111.0,97105.0,0.00607055]
[1738708923480,0.25684806,97111.0,97105.0,0.001]
[1738708923746,0.25684706,97111.0,97106.0,0.00507055]
[1738708923946,0.25684706,97111.0,97105.0,0.001]
[1738708924155,0.25684706,97111.0,97106.0,0.00507055]
[1738708924410,0.10238506,97111.0,97106.0,0.15447]
[1738708924644,0.25684706,97111.0,97107.0,0.00507055]
[1738708924805,0.10238506,97111.0,97107.0,0.00507055]
[1738708924998,0.10238506,97111.0,97105.0,0.001]
[1738708925207,0.10238506,97111.0,97105.0,0.15547]
[1738708925386,0.10238506,97111.0,97105.0,0.15447]
[1738708925588,0.10238506,97111.0,97106.0,0.00507055]
[1738708925788,0.10238506,97111.0,97106.0,0.001]
[1738708926035,0.10238506,97111.0,97107.0,0.00507055]
[1738708926241,0.25684706,97111.0,97107.0,0.00507055]
[1738708926419,0.25684706,97111.0,97106.0,0.001]
[1738708926612,0.25684706,97111.0,97108.0,0.00509122]
[1738708926816,0.10238506,97111.0,97104.0,0.00022407]
[1738708927023,0.10238506,97111.0,97109.0,0.00509122]
[1738708927181,0.10238506,97111.0,97105.0,0.154471]
[1738708927422,0.10238506,97111.0,97110.0,0.00509122]
[1738708927622,0.10238506,97111.0,97105.0,0.154471]
[1738708927821,0.01921212,97110.0,97105.0,0.154471]
[1738708928025,0.10238506,97109.0,97106.0,0.00509122]
[1738708928388,0.10238506,97109.0,97105.0,0.154471]
[1738708928613,0.10238506,97109.0,97107.0,0.00509122]
[1738708928832,0.10238506,97109.0,97106.0,0.001]
[1738708929063,0.10238506,97109.0,97108.0,0.00509122]
[1738708929205,0.01921212,97108.0,97106.0,0.001]
[1738708929437,0.10238506,97107.0,97104.0,0.00022407]
[1738708929842,0.10238506,97107.0,97104.0,0.15469607]
[1738708930043,0.10238506,97107.0,97104.0,0.00022407]
[1738708930262,0.01921212,97108.0,97106.0,0.08262116]
[1738708930454,0.205871,97148.0,97139.0,0.154417]
[1738708930655,0.205871,97148.0,97107.0,0.35778506]
[1738708930656,0.10238506,97141.0,97140.0,0.154416]
[1738708931887,0.15234708,97141.0,97140.0,0.154416]
[1738708932084,0.15234708,97141.0,97140.0,0.15952545]
[1738708933119,0.12160122,97141.0,97140.0,0.15952545]
[1738708934765,0.01921616,97141.0,97140.0,0.15952545]
[1738708936748,0.01932286,97141.0,97140.0,0.15952545]
[1738708936954,0.0001067,97141.0,97140.0,0.15952545]
[1738708937564,0.0001067,97141.0,97140.0,0.23827442]
[1738708937973,0.0001067,97141.0,97140.0,0.15952545]
[1738708939218,0.0001067,97141.0,97140.0,0.16052545]
[1738708939374,0.0001067,97141.0,97140.0,0.15952545]
[1738708939577,0.0001067,97141.0,97140.0,0.16052545]
[1738708940476,0.0001067,97141.0,97140.0,0.15952545]
[1738708940856,0.0001067,97141.0,97140.0,0.16052545]
[1738708942020,0.0001067,97141.0,97140.0,0.15952545]
[1738708942398,0.0001067,97141.0,97140.0,0.16052545]
[1738708943991,0.0001067,97141.0,97140.0,0.23902545]
[1738708946252,0.0001067,97141.0,97140.0,0.23802545]
[1738708946461,0.0001067,97141.0,97140.0,0.23902545]
[1738708946867,0.0001067,97141.0,97140.0,0.25955584]
[1738708954303,0.0001067,97141.0,97140.0,0.40955584]
[1738708954524,0.0001067,97141.0,97140.0,0.51205056]
[1738708958852,0.0001067,97141.0,97140.0,0.53505056]
[1738708959075,0.0001067,97141.0,97140.0,0.63743562]
[1738708960235,0.0001067,97141.0,97140.0,0.63643562]
[1738708960656,0.0001067,97141.0,97140.0,0.63743562]
[1738708961030,0.0001067,97141.0,97140.0,0.61590523]
[1738708962189,0.0001067,97141.0,97140.0,0.61690523]
[1738708962611,0.0001067,97141.0,97140.0,0.61590523]
[1738708962813,0.0001067,97141.0,97140.0,0.61690523]
[1738708963637,0.0001067,97141.0,97140.0,0.61590523]
[1738708963902,0.0001067,97141.0,97140.0,0.61690523]
[1738708965571,0.0001067,97141.0,97140.0,0.66112323]
[1738708965873,0.0001067,97141.0,97140.0,0.66012323]
[1738708966186,0.0001067,97141.0,97140.0,0.66112323]
[1738708970256,0.0001067,97141.0,97140.0,0.66012323]
[1738708970666,0.0001067,97141.0,97140.0,0.66112323]
[1738708971741,4e-07,97150.0,97149.0,0.314402]
[1738708971923,0.0145023,97187.0,97186.0,0.382843]
[1738708972316,0.01497214,97187.0,97186.0,0.382843]
[1738708973442,0.01497214,97187.0,97186.0,0.383843]
[1738708973892,0.01497214,97187.0,97186.0,0.382843]
[1738708974057,0.01497214,97187.0,97186.0,0.48491984]
[1738708974647,0.01497214,97187.0,97186.0,0.40641984]
[1738708974911,0.01497214,97187.0,97186.0,0.41883043]
[1738708975461,0.01497214,97187.0,97186.0,0.41983043]
[1738708976070,0.0148807,97187.0,97186.0,0.41883043]
[1738708976268,0.0148807,97187.0,97186.0,0.41983043]
[1738708976763,0.0148807,97187.0,97186.0,0.54521549]
[1738708976971,0.0148807,97187.0,97186.0,0.55009379]
[1738708977440,0.0148807,97187.0,97186.0,0.44770873]
[1738708977811,0.0148807,97187.0,97186.0,0.44283043]
[1738708978339,0.0148807,97187.0,97186.0,0.54521549]
[1738708978520,0.0148807,97187.0,97186.0,0.54421549]
[1738708978722,0.0148807,97187.0,97186.0,0.55128097]
[1738708979325,0.0148807,97187.0,97186.0,0.67398097]
[1738708980127,0.0148807,97187.0,97186.0,0.67298097]
[1738708980348,0.0148807,97187.0,97186.0,0.69436342]
[1738708981662,0.0148807,97187.0,97186.0,0.69336342]
[1738708982300,0.0148807,97187.0,97186.0,0.69436342]
[1738708982446,0.0148807,97187.0,97186.0,0.69336342]
[1738708982641,0.0148807,97187.0,97186.0,0.69436342]
[1738708983089,0.0149876,97187.0,97186.0,0.69336342]
[1738708983296,0.0149876,97187.0,97186.0,0.69436342]
[1738708984790,0.0149876,97187.0,97186.0,0.69336342]
[1738708984987,0.0149876,97187.0,97186.0,0.69436342]
[1738708985635,0.0149876,97187.0,97186.0,0.52347836]
[1738708985941,0.0149876,97187.0,97186.0,0.44627836]
[1738708986351,0.0149876,97187.0,97186.0,0.43921288]
[1738708986693,0.0149876,97187.0,97186.0,0.44021288]
[1738708988462,4.56661502,97193.0,97192.0,0.1385]
[1738708988616,4.4998664,97193.0,97192.0,0.58874845]
[1738708988818,4.4998664,97193.0,97192.0,0.59906845]
[1738708989256,4.10650209,97193.0,97192.0,0.62035132]
[1738708989470,0.14649535,97193.0,97192.0,0.83017386]
[1738708989675,0.0466,97265.0,97236.0,0.304263]
[1738708989885,0.00024748,97237.0,97236.0,0.4561077]
[1738708990468,0.06301717,97248.0,97237.0,0.15]
[1738708990687,0.06301717,97248.0,97247.0,0.304246]
[1738708991092,0.06301717,97248.0,97247.0,0.1600913]
[1738708991093,0.05301717,97248.0,97247.0,0.1600913]
[1738708991294,0.10101717,97248.0,97247.0,0.1600913]
[1738708992137,0.10101717,97248.0,97247.0,0.1610913]
[1738708992479,0.10101717,97248.0,97247.0,0.1600913]
[1738708992890,0.10101717,97248.0,97247.0,0.1610913]
[1738708992891,0.048,97248.0,97247.0,0.1610913]
[1738708993179,0.048,97248.0,97247.0,0.1600913]
[1738708993509,0.048,97248.0,97247.0,0.1610913]
[1738708994697,0.048,97248.0,97247.0,0.1600913]
[1738708994902,0.048,97248.0,97247.0,0.1610913]
[1738708995219,0.0481068,97248.0,97247.0,0.1600913]
[1738708999820,0.0481068,97248.0,97247.0,0.2042603]
[1738709004404,0.0481068,97248.0,97247.0,0.2052603]
[1738709004804,0.0481068,97248.0,97247.0,0.2042603]
[1738709005010,0.0481068,97248.0,97247.0,0.2052603]
[1738709007352,0.0481068,97248.0,97247.0,0.20548437]
[1738709010818,0.0481068,97248.0,97247.0,0.20448437]
[1738709011212,0.0481068,97248.0,97247.0,0.20548437]
[1738709013604,0.0481068,97248.0,97247.0,0.35548437]
[1738709014486,0.0481068,97248.0,97247.0,0.35448437]
[1738709014918,0.0481068,97248.0,97247.0,0.35548437]
[1738709015406,0.0481068,97248.0,97247.0,0.20548437]
[1738709017640,0.0481068,97248.0,97247.0,0.20448437]
[1738709017838,0.0481068,97248.0,97247.0,0.20548437]
[1738709018557,0.0001068,97248.0,97247.0,0.20548437]
[1738709020311,0.0001068,97248.0,97247.0,0.20448437]
[1738709020746,0.0001068,97248.0,97247.0,0.20548437]
[1738709021599,0.0001068,97248.0,97247.0,0.20448437]
[1738709021927,0.0001068,97248.0,97247.0,0.20548437]
[1738709022105,0.0001068,97248.0,97247.0,0.20448437]
[1738709022293,0.0001068,97248.0,97247.0,0.35448437]
[1738709023352,0.0001068,97248.0,97247.0,0.35548437]
[1738709023728,0.0001068,97248.0,97247.0,0.35448437]
[1738709023935,0.0001068,97248.0,97247.0,0.35548437]
[1738709024509,0.0001068,97248.0,97247.0,0.35448437]
[1738709024718,0.0001068,97248.0,97247.0,0.35548437]
[1738709024922,0.0001068,97248.0,97247.0,0.35448437]
[1738709025439,0.0001068,97248.0,97247.0,0.35548437]
[1738709029814,0.0001068,97248.0,97247.0,0.35448437]
[1738709030017,0.0001068,97248.0,97247.0,0.35548437]
[1738709030375,0.0001068,97248.0,97247.0,0.35448437]
[1738709030784,0.0001068,97248.0,97247.0,0.35548437]
[1738709033035,0.0001068,97248.0,97247.0,0.35448437]
[1738709033381,0.0001068,97248.0,97247.0,0.35548437]
[1738709033590,0.0001068,97248.0,97247.0,0.35448437]
[1738709034013,0.0001068,97248.0,97247.0,0.35548437]
[1738709035163,0.0001068,97248.0,97247.0,0.45786943]
[1738709035916,0.0001068,97248.0,97247.0,0.53496943]
[1738709036453,0.0001068,97248.0,97247.0,0.53396943]
[1738709036654,0.0001068,97248.0,97247.0,0.45686943]
[1738709037198,0.0001068,97248.0,97247.0,0.45786943]
[1738709038046,0.0001068,97248.0,97247.0,0.45686943]
[1738709039233,8e-07,97248.0,97247.0,0.45786943]
[1738709039474,8e-07,97248.0,97247.0,0.48265633]
[1738709039720,8e-07,97248.0,97247.0,0.45965633]
[1738709039927,8e-07,97248.0,97247.0,0.46065633]
[1738709040335,8e-07,97248.0,97247.0,0.46885633]
[1738709040806,8e-07,97248.0,97247.0,0.46985633]
[1738709040951,8e-07,97248.0,97247.0,0.45674828]
[1738709041152,8e-07,97248.0,97247.0,0.45964856]
[1738709042509,8e-07,97248.0,97247.0,0.45864856]
[1738709042924,8e-07,97248.0,97247.0,0.45964856]
[1738709043124,8e-07,97248.0,97247.0,0.45864856]
[1738709043559,8e-07,97248.0,97247.0,0.45964856]
[1738709043764,8e-07,97248.0,97247.0,0.45864856]
[1738709043894,8e-07,97248.0,97247.0,0.53554856]
[1738709044103,8e-07,97248.0,97247.0,0.45964856]
[1738709044308,8e-07,97248.0,97247.0,0.45864856]
[1738709046100,8e-07,97248.0,97247.0,0.45964856]
[1738709046908,8e-07,97248.0,97247.0,0.45864856]
[1738709047344,8e-07,97248.0,97247.0,0.45964856]
[1738709049359,8e-07,97248.0,97247.0,0.3562635]
[1738709049588,8e-07,97248.0,97247.0,0.3572635]
[1738709049817,8e-07,97248.0,97247.0,0.3562635]
[1738709050174,8e-07,97248.0,97247.0,0.3552388]
[1738709050411,8e-07,97248.0,97247.0,0.3542388]
[1738709050412,0.0471008,97248.0,97247.0,0.3542388]
[1738709050635,0.0471008,97248.0,97247.0,0.3552388]
[1738709050980,0.0471008,97248.0,97247.0,0.3542388]
[1738709052222,0.0471008,97248.0,97247.0,0.3552388]
[1738709052876,0.0471008,97248.0,97247.0,0.2052388]
[1738709054119,0.1298008,97248.0,97247.0,0.2052388]
[1738709055199,0.24587269,97248.0,97247.0,0.0530175]
[1738709055424,0.40011669,97248.0,97247.0,0.0030175]
[1738709055620,0.1309,97241.0,97235.0,0.154264]
[1738709055786,0.1309,97239.0,97236.0,0.154262]
[1738709055982,0.1309,97239.0,97236.0,0.15966391]
[1738709055983,0.1309,97238.0,97236.0,0.15966391]
[1738709056200,0.0827,97237.0,97236.0,0.15966391]
[1738709056401,0.1318,97237.0,97236.0,0.15966391]
[1738709057301,0.1318,97237.0,97236.0,0.00640191]
[1738709057483,0.1318,97237.0,97236.0,0.15966491]
[1738709058879,0.1318,97237.0,97236.0,0.16066491]
[1738709059263,0.1318,97237.0,97236.0,0.15966491]
[1738709059460,0.1318,97237.0,97236.0,0.16066491]
[1738709059775,0.15521851,97237.0,97236.0,0.16066491]
[1738709060172,0.15521851,97237.0,97236.0,0.15966491]
[1738709060566,0.15521851,97237.0,97236.0,0.16066491]
[1738709060986,0.1318,97237.0,97236.0,0.16066491]
[1738709061388,0.1318,97237.0,97236.0,0.00640191]
[1738709062263,0.234163,97236.0,97228.0,0.154276]
[1738709062473,0.0799,97235.0,97229.0,0.00549735]
[1738709062935,0.0799,97235.0,97231.0,0.15427]
[1738709063077,0.0799,97235.0,97230.0,0.21119335]
[1738709063278,0.07932596,97235.0,97233.0,0.154268]
[1738709063550,0.0464,97234.0,97230.0,0.205696]
[1738709063726,0.0464,97234.0,97231.0,0.15427]
[1738709064141,0.0464,97234.0,97232.0,0.15427]
[1738709064295,0.0464,97234.0,97229.0,0.206698]
[1738709064489,0.0464,97234.0,97230.0,0.205697]
[1738709064784,0.0464,97234.0,97232.0,0.154269]
[1738709066145,0.0464,97234.0,97230.0,0.206697]
[1738709066345,0.0464,97234.0,97232.0,0.154269]
[1738709066526,0.079,97233.0,97232.0,0.154269]
[1738709067064,0.079,97233.0,97232.0,0.15976635]
[1738709070217,0.079,97233.0,97232.0,0.16076635]
[1738709070675,0.079,97233.0,97232.0,0.15976635]
[1738709070833,0.079,97233.0,97232.0,0.16076635]
[1738709073101,0.079,97233.0,97232.0,0.15976635]
[1738709073681,0.079,97233.0,97232.0,0.16076635]
[1738709074680,0.10238506,97239.0,97232.0,0.00549735]
[1738709074882,0.10238506,97238.0,97236.0,0.154263]
[1738709075063,0.1318,97237.0,97236.0,0.154263]
[1738709075301,0.23418506,97237.0,97236.0,0.154263]
[1738709075495,0.0823,97236.0,97234.0,0.154265]
[1738709075644,0.18468506,97236.0,97235.0,0.154264]
[1738709079380,0.0827,97235.0,97232.0,0.00022428]
[1738709079678,0.0827,97235.0,97233.0,0.154267]
[1738709079679,0.10238506,97234.0,97233.0,0.154267]
[1738709080237,0.10238506,97234.0,97232.0,0.15449328]
[1738709080889,0.10238506,97234.0,97232.0,0.00022428]
[1738709081457,0.10238506,97234.0,97232.0,0.15449328]
[1738709081880,0.10238506,97234.0,97233.0,0.00549405]
[1738709083610,0.10238506,97234.0,97233.0,0.15976205]
[1738709084286,0.38225206,97234.0,97233.0,0.00549405]
[1738709084600,0.233568,97233.0,97232.0,0.00022428]
[1738709084800,0.33595306,97233.0,97232.0,0.00022428]
[1738709088346,0.18168506,97233.0,97232.0,0.00022428]
[1738709088549,0.33595306,97233.0,97232.0,0.00022428]
[1738709088762,0.33595306,97233.0,97232.0,0.00571026]
[1738709088963,0.33595306,97233.0,97232.0,0.00022428]
[1738709089104,0.33595306,97233.0,97232.0,0.00571026]
[1738709090992,0.33595306,97233.0,97232.0,0.00022428]
[1738709092131,0.18168506,97233.0,97232.0,0.00022428]
[1738709092784,0.18168506,97233.0,97232.0,0.00579487]
[1738709092994,0.18168506,97233.0,97232.0,0.00022428]
[1738709093212,0.18168506,97233.0,97232.0,0.00579487]
[1738709093414,0.24343506,97233.0,97232.0,0.00022428]
[1738709093548,0.18168506,97233.0,97232.0,0.00579487]
[1738709095822,0.24166685,97233.0,97232.0,0.00579487]
[1738709096045,0.39515306,97233.0,97232.0,0.00579487]
[1738709096265,0.39465306,97233.0,97232.0,0.00579487]
[1738709096446,0.39465306,97233.0,97232.0,0.00022428]
[1738709098930,0.38465306,97233.0,97232.0,0.00022428]
[1738709102726,0.40765306,97233.0,97232.0,0.00022428]
[1738709102873,0.41765306,97233.0,97232.0,0.00022428]
[1738709103466,0.47940306,97233.0,97232.0,0.00022428]
[1738709105551,0.62940306,97233.0,97232.0,0.00022428]
[1738709105764,0.01,97229.0,97186.0,0.00022428]
[1738709105972,0.01,97229.0,97139.0,0.03421862]
[1738709105973,0.1874,97150.0,97134.0,0.00022407]
[1738709106734,0.2353,97150.0,97134.0,0.00022407]
[1738709106940,0.30890233,97150.0,97134.0,0.00022407]
[1738709107138,0.46890233,97150.0,97134.0,0.00022407]
[1738709107345,0.46896975,97150.0,97134.0,0.00022407]
[1738709107853,0.47296975,97150.0,97134.0,0.00022407]
[1738709108210,0.50787078,97150.0,97149.0,4.046e-05]
[1738709108542,0.51187078,97150.0,97149.0,0.00104046]
[1738709108752,0.41121975,97150.0,97149.0,0.00104046]
[1738709109350,0.41521975,97150.0,97149.0,0.00104046]
[1738709109481,0.40521975,97150.0,97149.0,0.00104046]
[1738709110599,0.41521975,97150.0,97149.0,0.00104046]
[1738709111135,0.61024956,97150.0,97149.0,0.00104046]
[1738709111401,0.50760481,97150.0,97149.0,0.00104046]
[1738709111729,0.57935481,97150.0,97149.0,0.00104046]
[1738709111944,0.51760481,97150.0,97149.0,0.00104046]
[1738709112337,0.314417,97139.0,97134.0,0.00022407]
[1738709112495,0.43980206,97139.0,97134.0,0.00022407]
[1738709112703,0.72758708,97139.0,97134.0,0.00022407]
[1738709112928,0.76456745,97139.0,97134.0,0.00022407]
[1738709113127,0.66607715,97139.0,97134.0,0.00022407]
[1738709113757,0.67007715,97139.0,97138.0,0.00122407]
[1738709113970,0.66607715,97139.0,97138.0,0.00022407]
[1738709114330,0.66607715,97139.0,97138.0,0.00122407]
[1738709114331,0.68907593,97139.0,97138.0,0.00122407]
[1738709114528,0.65209556,97139.0,97138.0,0.00122407]
[1738709114752,0.66397462,97139.0,97138.0,0.00122407]
[1738709114918,0.65397462,97139.0,97138.0,0.00122407]
[1738709115120,0.66397462,97139.0,97138.0,0.00122407]
[1738709115344,0.66597462,97139.0,97138.0,0.00122407]
[1738709115953,0.66397462,97139.0,97138.0,0.00122407]
[1738709116200,0.66697462,97139.0,97138.0,0.00122407]
[1738709116933,0.67109562,97139.0,97138.0,0.00122407]
[1738709118040,0.69140103,97139.0,97138.0,0.00122407]
[1738709118279,0.73880103,97139.0,97138.0,7e-08]
[1738709118507,0.3164,97105.0,97095.0,0.08234731]
[1738709118733,0.57325606,97105.0,97095.0,0.08234731]
[1738709119218,0.324497,97089.0,97054.0,0.08262116]
[1738709119446,0.44988206,97089.0,97054.0,0.08262116]
[1738709119661,0.53606837,97089.0,97054.0,0.08262116]
[1738709120012,0.53606837,97089.0,97088.0,0.00069412]
[1738709120622,0.54506837,97089.0,97088.0,0.00069412]
[1738709121614,0.67576837,97089.0,97088.0,0.00069412]
[1738709122226,0.67876837,97089.0,97088.0,0.00069412]
[1738709122449,0.69043414,97089.0,97088.0,0.00069412]
[1738709123188,0.75218414,97089.0,97088.0,0.00069412]
[1738709125309,0.77266062,97089.0,97088.0,0.00069412]
[1738709127064,0.61266062,97089.0,97088.0,0.00069412]
[1738709127274,0.58966062,97089.0,97088.0,0.00069412]
[1738709127486,0.49447431,97089.0,97088.0,0.00069412]
[1738709127655,0.64147431,97089.0,97088.0,0.00069412]
[1738709127845,0.65347431,97089.0,97088.0,0.00169412]
[1738709128177,0.44054783,97089.0,97088.0,0.00069412]
[1738709128415,0.28654783,97089.0,97088.0,0.00169412]
[1738709128746,0.13605083,97089.0,97088.0,0.00169412]
[1738709128947,0.12438506,97089.0,97088.0,0.00169412]
[1738709129147,0.12038506,97089.0,97088.0,0.00169412]
[1738709129556,0.27688206,97089.0,97088.0,0.00169412]
[1738709130161,0.29988206,97089.0,97088.0,0.00169412]
[1738709130381,0.28188206,97089.0,97088.0,0.00069412]
[1738709130764,0.35740716,97089.0,97088.0,0.00169412]
[1738709131201,0.35040716,97089.0,97088.0,0.00269412]
[1738709131561,0.66345716,97089.0,97088.0,1.2e-07]
[1738709131760,0.154554,97053.0,97052.0,0.08234731]
[1738709131996,0.29539446,97053.0,97052.0,0.08780786]
[1738709132207,0.29539446,97053.0,97052.0,0.00546055]
[1738709132402,0.177556,97052.0,97051.0,0.0006948]
[1738709132690,0.27994106,97052.0,97051.0,0.0006948]
[1738709135475,0.28094106,97052.0,97051.0,0.0006948]
[1738709135682,0.35896971,97052.0,97051.0,0.0006948]
[1738709136071,0.35796971,97052.0,97051.0,0.0006948]
[1738709136879,0.36196971,97052.0,97051.0,0.0006948]
[1738709137304,0.35796971,97052.0,97051.0,0.0006948]
[1738709137455,0.36296971,97052.0,97051.0,0.0006948]
[1738709138410,0.35896971,97052.0,97051.0,0.0006948]
[1738709138583,0.36496971,97052.0,97051.0,0.0006948]
[1738709138784,0.36396971,97052.0,97051.0,0.0006948]
[1738709138985,0.29739333,97052.0,97051.0,0.0006948]
[1738709139228,0.29939333,97052.0,97051.0,0.0006948]
[1738709140172,0.28794106,97052.0,97051.0,0.0006948]
[1738709140375,0.11038506,97052.0,97051.0,0.0006948]
[1738709140580,0.10438506,97052.0,97051.0,0.0006948]
[1738709140789,0.12952901,97052.0,97051.0,0.0006948]
[1738709140985,0.12752901,97052.0,97051.0,0.0006948]
[1738709141431,0.13452901,97052.0,97051.0,0.0006948]
[1738709141639,0.02014395,97052.0,97051.0,0.0006948]
[1738709141881,0.01914395,97052.0,97051.0,0.00626821]
[1738709142118,0.02014395,97052.0,97051.0,0.1552518]
[1738709142334,0.02014395,97052.0,97051.0,0.16088883]
[1738709142910,0.001,97052.0,97051.0,0.16088883]
[1738709143971,0.154522,97073.0,97058.0,0.206061]
[1738709144297,0.10238506,97072.0,97058.0,0.206061]
[1738709144495,0.30022269,97072.0,97060.0,0.154542]
[1738709144708,0.14569769,97072.0,97059.0,0.00563703]
[1738709144854,0.14569769,97072.0,97051.0,0.0036948]
[1738709145133,0.01004,97128.0,97051.0,0.0036948]
[1738709145134,0.00022471,97088.0,97051.0,0.0016948]
[1738709145381,0.10260977,97088.0,97063.0,0.206051]
[1738709145606,0.00022471,97088.0,97087.0,0.1545]
[1738709146240,0.01941048,97088.0,97087.0,0.16000656]
[1738709146519,0.01941048,97088.0,97087.0,0.00550656]
[1738709146725,0.01941048,97088.0,97087.0,0.16000656]
[1738709146963,0.01941048,97088.0,97087.0,0.15464083]
[1738709147232,0.01941048,97088.0,97087.0,0.16008657]
[1738709149084,0.01941048,97088.0,97087.0,0.16108657]
[1738709149440,0.01941048,97088.0,97087.0,0.16008657]
[1738709149878,0.01941048,97088.0,97087.0,0.16208657]
[1738709150099,0.01941048,97088.0,97087.0,0.16108657]
[1738709150534,0.01941048,97088.0,97087.0,0.16208657]
[1738709150861,0.01941048,97088.0,97087.0,0.16108657]
[1738709151098,0.01941048,97088.0,97087.0,0.16008657]
[1738709151530,0.01941048,97088.0,97087.0,0.16108657]
[1738709151992,0.01941048,97088.0,97087.0,0.16008657]
[1738709152202,0.01941048,97088.0,97087.0,0.16108657]
[1738709152650,0.01941048,97088.0,97087.0,0.16008657]
[1738709153123,0.01941048,97088.0,97087.0,0.16108657]
[1738709153331,0.01941048,97088.0,97087.0,0.16208657]
[1738709153574,0.01941048,97088.0,97087.0,0.16108657]
[1738709153897,0.00022471,97088.0,97087.0,0.16108657]
[1738709154298,0.00022471,97088.0,97087.0,0.16008657]
[1738709154528,0.00022471,97088.0,97087.0,0.16108657]
[1738709154984,0.00022471,97088.0,97087.0,0.16208657]
[1738709156061,0.00022471,97088.0,97087.0,0.16008657]
[1738709157367,0.00022471,97088.0,97087.0,0.16108657]
[1738709157800,0.00022471,97088.0,97087.0,0.16008657]
[1738709158015,0.00022471,97088.0,97087.0,0.16108657]
[1738709158674,0.00022471,97088.0,97087.0,0.16008657]
[1738709158880,0.00022471,97088.0,97087.0,0.16108657]
[1738709160280,0.00022471,97088.0,97087.0,0.16308657]
[1738709160508,0.00022471,97088.0,97087.0,0.16108657]
[1738709160973,0.00022471,97088.0,97087.0,0.16308657]
[1738709161294,0.00022471,97088.0,97087.0,0.17444543]
[1738709162092,0.00022471,97088.0,97087.0,0.17568128]
[1738709162493,0.091728,97115.0,97114.0,0.187457]
[1738709162647,0.009352,97115.0,97114.0,0.47517245]
[1738709162845,0.01140484,97164.0,97148.0,0.154403]
[1738709163269,0.0475,97168.0,97148.0,0.154403]
[1738709163270,0.154374,97167.0,97148.0,0.154403]
[1738709163477,0.01144163,97165.0,97148.0,0.15967059]
[1738709164096,0.01144163,97165.0,97148.0,0.16067059]
[1738709164625,0.0475,97168.0,97148.0,0.16181142]
[1738709164849,0.01141404,97166.0,97148.0,0.16181142]
[1738709164980,0.01141404,97166.0,97148.0,0.16304647]
[1738709165161,0.01141404,97166.0,97148.0,0.16181142]
[1738709166007,0.0475,97168.0,97148.0,0.16181142]
[1738709166813,0.0475,97168.0,97148.0,0.16304647]
[1738709167345,0.0475,97183.0,97148.0,0.16181142]
[1738709167585,0.15436,97175.0,97148.0,0.16181142]
[1738709167759,0.21737823,97178.0,97148.0,0.16181142]
[1738709167963,0.154362,97174.0,97148.0,0.16181142]
[1738709168338,0.154361,97175.0,97148.0,0.16181142]
[1738709168543,0.01156923,97178.0,97148.0,0.16181142]
[1738709168724,0.154359,97177.0,97148.0,0.16181142]
[1738709169065,0.205802,97181.0,97148.0,0.16304643]
[1738709169296,0.154357,97178.0,97148.0,0.16304643]
[1738709169446,0.01172629,97179.0,97148.0,0.16304643]
[1738709169788,0.0475,97183.0,97148.0,0.26543149]
[1738709169960,0.0475,97183.0,97148.0,0.26419648]
[1738709170168,0.0475,97183.0,97148.0,0.41419648]
[1738709170744,0.0475,97183.0,97148.0,0.41319648]
[1738709171352,0.0475,97183.0,97148.0,0.41419648]
[1738709171645,0.0475,97183.0,97148.0,0.41319648]
[1738709171835,0.0475,97183.0,97148.0,0.41419648]
[1738709172493,7.1e-07,97149.0,97148.0,0.41419648]
[1738709172692,7.1e-07,97149.0,97148.0,0.41319648]
[1738709172898,7.1e-07,97149.0,97148.0,0.41419648]
[1738709173431,7.1e-07,97149.0,97148.0,0.44719648]
[1738709175006,0.00022471,97186.0,97154.0,0.01]
[1738709175160,0.00022471,97186.0,97185.0,0.154344]
[1738709175707,0.00022471,97186.0,97185.0,0.1591095]
[1738709176510,0.00022471,97186.0,97185.0,0.17055531]
[1738709176664,0.00022471,97186.0,97185.0,0.17155531]
[1738709177547,0.00022471,97186.0,97185.0,0.17278983]
[1738709177749,0.00022471,97186.0,97185.0,0.27517489]
[1738709178109,0.00022471,97186.0,97185.0,0.27394037]
[1738709179038,7.1e-07,97186.0,97185.0,0.27394037]
[1738709179233,7.1e-07,97186.0,97185.0,0.42394037]
[1738709180358,7.1e-07,97186.0,97185.0,0.42494037]
[1738709180506,7.1e-07,97186.0,97185.0,0.42394037]
[1738709180922,7.1e-07,97186.0,97185.0,0.42494037]
[1738709181860,7.1e-07,97186.0,97185.0,0.44794037]
[1738709183505,7.1e-07,97186.0,97185.0,0.52974037]
[1738709183934,7.1e-07,97186.0,97185.0,0.57534037]
[1738709184081,7.1e-07,97186.0,97185.0,0.58534037]
[1738709184701,7.1e-07,97186.0,97185.0,0.58434037]
[1738709184944,0.05950071,97231.0,97230.0,0.154273]
[1738709185140,0.16235495,97231.0,97230.0,0.154273]
[1738709185567,0.16235495,97231.0,97230.0,0.15879211]
[1738709186387,0.05996989,97231.0,97230.0,0.15879211]
[1738709186556,0.00246918,97231.0,97230.0,0.15879211]
[1738709187899,0.00046918,97231.0,97230.0,0.15879211]
[1738709188115,0.00046918,97231.0,97230.0,0.15979211]
[1738709188740,0.0154005,97270.0,97251.0,0.01]
[1738709188943,0.00018073,97260.0,97259.0,0.509827]
[1738709189915,0.00018073,97260.0,97259.0,0.52092592]
[1738709190125,0.00018073,97260.0,97259.0,0.52192592]
[1738709190738,7.3e-07,97260.0,97259.0,0.63431098]
[1738709191052,0.0759,97301.0,97275.0,0.304202]
[1738709192750,0.0759,97301.0,97275.0,0.305202]
[1738709192951,0.0759,97301.0,97275.0,0.155202]
[1738709193375,0.0759,97301.0,97275.0,0.16670903]
[1738709193907,0.0759,97301.0,97275.0,0.155202]
[1738709194064,0.0759,97301.0,97275.0,0.156202]
[1738709194398,1.5,97300.0,97275.0,0.156202]
[1738709194820,0.0904554,97276.0,97275.0,0.156202]
[1738709195010,0.247086,97276.0,97275.0,0.002]
[1738709195365,0.23804046,97276.0,97275.0,0.002]